bitfinex/quotes_BTCUSD_20250225
["timestamp","ask_amount","ask_price","bid_price","bid_amount"]
[1740462170597,0.15,92187.0,92158.0,0.00151891]
[1740462170905,0.001,92187.0,92158.0,0.00151891]
[1740462171061,0.001,92187.0,92159.0,0.08504172]
[1740462171263,0.0016976,92191.0,92160.0,0.00151881]
[1740462171477,0.001,92187.0,92160.0,0.00151881]
[1740462172693,0.01702158,92181.0,92161.0,0.0499]
[1740462172991,0.01702158,92181.0,92162.0,0.00151875]
[1740462173166,0.01702158,92181.0,92163.0,0.08361875]
[1740462173405,0.17165998,92226.0,92165.0,0.0821]
[1740462173575,0.0170206,92185.0,92173.0,0.132]
[1740462173781,0.00823102,92175.0,92174.0,0.21760471]
[1740462173989,0.17165998,92226.0,92175.0,0.0821]
[1740462174167,0.17165998,92226.0,92177.0,0.0821]
[1740462174421,0.17165998,92226.0,92179.0,0.0821]
[1740462174563,0.17165998,92226.0,92180.0,0.00151843]
[1740462174764,0.17165998,92226.0,92181.0,0.0499]
[1740462174765,0.15,92225.0,92181.0,0.0499]
[1740462174963,0.15,92225.0,92182.0,0.02826889]
[1740462176354,0.15,92225.0,92183.0,0.0757]
[1740462176561,0.0121,92232.0,92184.0,0.08729843]
[1740462176762,0.01701746,92215.0,92184.0,0.08729843]
[1740462177642,0.01701746,92215.0,92186.0,0.0789]
[1740462177868,0.01701746,92215.0,92194.0,0.0789]
[1740462178071,0.01701746,92215.0,92195.0,0.21288616]
[1740462178270,0.0498,92243.0,92196.0,0.08041813]
[1740462178471,0.0498,92243.0,92197.0,0.13398616]
[1740462178690,0.006,92215.0,92198.0,0.00151812]
[1740462178828,0.006,92215.0,92199.0,0.13398616]
[1740462179034,0.00802851,92200.0,92199.0,0.13398616]
[1740462179469,0.00802851,92200.0,92199.0,0.17039664]
[1740462179815,0.0076974,92215.0,92199.0,0.17039664]
[1740462180320,0.00807179,92201.0,92199.0,0.16887842]
[1740462180723,0.00807179,92201.0,92200.0,0.01008]
[1740462181589,0.01007179,92201.0,92200.0,0.01008]
[1740462182315,0.0270884,92201.0,92200.0,0.01008]
[1740462182508,0.0270884,92201.0,92200.0,0.08968]
[1740462182712,0.0270884,92201.0,92200.0,0.13699818]
[1740462182910,0.01701661,92201.0,92200.0,0.16409661]
[1740462183314,0.01901661,92201.0,92200.0,0.16409661]
[1740462183516,0.01901661,92201.0,92200.0,0.29808277]
[1740462183679,0.01701661,92201.0,92200.0,0.71797816]
[1740462184076,0.01801661,92201.0,92200.0,0.71797816]
[1740462184366,0.0016974,92215.0,92200.0,0.71797816]
[1740462184543,0.0016974,92215.0,92205.0,0.1258]
[1740462184864,0.0016974,92215.0,92206.0,0.08101788]
[1740462186047,0.00812673,92213.0,92207.0,0.01008]
[1740462186236,0.00812673,92213.0,92206.0,0.0795]
[1740462186457,0.00812673,92213.0,92208.0,0.01159799]
[1740462186662,0.00812673,92213.0,92209.0,0.0137398]
[1740462187789,0.01212673,92213.0,92209.0,0.14772596]
[1740462187945,0.01212673,92213.0,92210.0,0.00151809]
[1740462188151,0.00812673,92213.0,92210.0,0.00151809]
[1740462188375,0.01212673,92213.0,92210.0,0.00151809]
[1740462188698,0.01212673,92213.0,92211.0,0.02851241]
[1740462190455,0.00812673,92213.0,92211.0,0.02851241]
[1740462190885,0.01212673,92213.0,92211.0,0.02851241]
[1740462191297,0.00812673,92213.0,92211.0,0.02851241]
[1740462191493,0.01212673,92213.0,92211.0,0.02851241]
[1740462193070,0.01212673,92213.0,92212.0,0.03120784]
[1740462193902,0.00812673,92213.0,92212.0,0.03120784]
[1740462194224,0.01212673,92213.0,92212.0,0.03120784]
[1740462195036,0.00812673,92213.0,92212.0,0.03120784]
[1740462195408,0.01112673,92213.0,92212.0,0.03120784]
[1740462199931,0.003,92213.0,92212.0,0.11190784]
[1740462200133,0.003,92213.0,92212.0,0.15952572]
[1740462200560,0.003,92213.0,92212.0,0.1268]
[1740462200923,0.0016974,92215.0,92212.0,0.1268]
[1740462201336,0.003,92213.0,92209.0,0.13398616]
[1740462201786,0.0016974,92215.0,92200.0,0.0008483]
[1740462203422,0.0016974,92215.0,92201.0,0.00151833]
[1740462203740,0.0056974,92215.0,92200.0,0.0008483]
[1740462203937,0.0056974,92215.0,92201.0,0.0008486]
[1740462204140,0.0056974,92215.0,92201.0,0.00236681]
[1740462204141,0.0016974,92215.0,92201.0,0.00236681]
[1740462204520,0.0066974,92215.0,92201.0,0.00236681]
[1740462204729,0.0016972,92213.0,92201.0,0.00236681]
[1740462205506,0.0016972,92213.0,92201.0,0.13483476]
[1740462205934,0.01701646,92211.0,92201.0,0.13483476]
[1740462206107,0.01701646,92211.0,92201.0,0.15823128]
[1740462207266,0.0016972,92213.0,92201.0,0.15823128]
[1740462207821,0.003,92211.0,92201.0,0.15823128]
[1740462208242,0.0016972,92213.0,92201.0,0.15823128]
[1740462208437,0.0046972,92213.0,92202.0,0.02421796]
[1740462208655,0.0046972,92213.0,92203.0,0.0015182]
[1740462209872,0.0016972,92213.0,92203.0,0.0015182]
[1740462210080,0.01701612,92211.0,92203.0,0.0015182]
[1740462210278,0.02001612,92211.0,92204.0,0.1267]
[1740462210525,0.003,92211.0,92204.0,0.1267]
[1740462210711,0.0016972,92213.0,92204.0,0.1267]
[1740462211097,0.0056972,92213.0,92205.0,0.00151809]
[1740462211464,0.0056972,92213.0,92206.0,0.13398616]
[1740462211676,0.0016972,92213.0,92206.0,0.13398616]
[1740462211883,0.0056972,92213.0,92206.0,0.13398616]
[1740462212596,0.0056972,92213.0,92206.0,0.13197244]
[1740462212951,0.0056972,92213.0,92197.0,0.0825]
[1740462212952,0.0056972,92213.0,92194.0,0.01566716]
[1740462213161,0.0056972,92213.0,92194.0,0.01157793]
[1740462213312,0.0016972,92213.0,92192.0,0.39667284]
[1740462213775,0.0056972,92213.0,92192.0,0.39667284]
[1740462214286,0.01701717,92208.0,92193.0,0.00151833]
[1740462214716,0.0056972,92213.0,92193.0,0.00151833]
[1740462215690,0.0016972,92213.0,92193.0,0.00151833]
[1740462215913,0.0016972,92213.0,92195.0,0.0772]
[1740462216134,0.0016972,92213.0,92196.0,0.00151826]
[1740462216325,0.0016972,92213.0,92196.0,0.05001826]
[1740462216854,0.01701681,92209.0,92196.0,0.05001826]
[1740462217179,0.002,92208.0,92196.0,0.05001826]
[1740462217740,0.01701681,92209.0,92196.0,0.05001826]
[1740462218728,0.002,92208.0,92196.0,0.05001826]
[1740462219813,0.002,92208.0,92195.0,0.3996]
[1740462219814,0.002,92208.0,92195.0,0.3224]
[1740462220310,0.01701681,92209.0,92195.0,0.3224]
[1740462220637,0.01901681,92209.0,92195.0,0.3224]
[1740462221242,0.01701681,92209.0,92195.0,0.3224]
[1740462221483,0.01901681,92209.0,92195.0,0.3224]
[1740462222081,0.01701681,92209.0,92195.0,0.3224]
[1740462223347,0.01901681,92209.0,92195.0,0.3224]
[1740462223651,0.195,92207.0,92195.0,0.3224]
[1740462225168,0.196,92207.0,92195.0,0.3224]
[1740462226339,0.195,92207.0,92195.0,0.3224]
[1740462227057,0.197,92207.0,92195.0,0.3224]
[1740462227469,0.1969,92207.0,92195.0,0.3224]
[1740462227675,0.1949,92207.0,92195.0,0.3224]
[1740462227872,0.1959,92207.0,92195.0,0.3224]
[1740462228075,0.1959,92207.0,92196.0,0.03232486]
[1740462228441,0.001,92207.0,92196.0,0.03232486]
[1740462229042,0.001,92207.0,92195.0,0.3224]
[1740462229221,0.001,92207.0,92197.0,0.1299]
[1740462229373,0.0016972,92213.0,92197.0,0.1299]
[1740462229571,0.002,92207.0,92201.0,0.01454085]
[1740462229791,0.002,92207.0,92203.0,0.01454085]
[1740462230019,0.002,92207.0,92204.0,0.00151805]
[1740462230177,0.0016972,92213.0,92204.0,0.00151805]
[1740462230738,0.0016972,92213.0,92201.0,0.01454085]
[1740462231075,0.0016972,92213.0,92204.0,0.001]
[1740462231311,0.0016972,92213.0,92204.0,0.00251803]
[1740462231523,0.0016972,92213.0,92204.0,0.001]
[1740462232321,0.0016972,92213.0,92205.0,0.00151804]
[1740462232843,0.0026972,92213.0,92205.0,0.00151804]
[1740462233241,0.0016972,92213.0,92205.0,0.00151804]
[1740462233449,0.0016972,92213.0,92204.0,0.00151804]
[1740462233611,0.0026972,92213.0,92204.0,0.00151804]
[1740462234436,0.0016972,92213.0,92204.0,0.00151804]
[1740462235240,0.0016972,92213.0,92205.0,0.3224]
[1740462235358,0.0016972,92213.0,92206.0,0.00151803]
[1740462235777,0.0026972,92213.0,92206.0,0.00151803]
[1740462236183,0.0016972,92213.0,92206.0,0.00151803]
[1740462236601,0.0026972,92213.0,92206.0,0.00151803]
[1740462236882,0.0170153,92212.0,92206.0,0.00151803]
[1740462237328,0.0170153,92212.0,92207.0,0.3224]
[1740462237501,0.0170153,92212.0,92209.0,0.0754]
[1740462237709,0.0170153,92212.0,92210.0,0.01605889]
[1740462238109,0.0170153,92212.0,92211.0,0.01004]
[1740462239760,0.0180153,92212.0,92211.0,0.01004]
[1740462239945,0.0170153,92212.0,92211.0,0.01004]
[1740462240117,0.0170153,92212.0,92211.0,0.01155801]
[1740462240321,0.0180153,92212.0,92211.0,0.01155801]
[1740462241183,0.0180153,92212.0,92211.0,0.33395801]
[1740462241490,0.0170153,92212.0,92211.0,0.33244]
[1740462242656,0.0187123,92212.0,92211.0,0.33244]
[1740462242886,0.0187123,92212.0,92211.0,0.3224]
[1740462244619,0.0187123,92212.0,92211.0,0.35709809]
[1740462245201,0.0187123,92212.0,92211.0,0.46424085]
[1740462245606,0.001697,92212.0,92211.0,0.86091369]
[1740462245782,0.001697,92212.0,92211.0,0.97551369]
[1740462247221,0.001697,92212.0,92211.0,0.99551369]
[1740462247461,0.002697,92212.0,92211.0,0.99751369]
[1740462247631,0.002697,92212.0,92211.0,1.10026906]
[1740462248418,0.002697,92212.0,92211.0,0.98566906]
[1740462250465,0.00152033,92213.0,92212.0,0.16334085]
[1740462250633,0.00152033,92213.0,92212.0,0.25167657]
[1740462250827,0.00152033,92213.0,92212.0,0.25015912]
[1740462251034,0.00152033,92213.0,92212.0,0.35822809]
[1740462252368,0.00252033,92213.0,92212.0,0.36122809]
[1740462252973,0.00252033,92213.0,92212.0,1.08030093]
[1740462254581,0.20452586,92295.0,92217.0,0.01454085]
[1740462254860,0.00012934,92230.0,92220.0,0.01454085]
[1740462255086,0.00012934,92230.0,92222.0,0.01454085]
[1740462255367,0.00012934,92230.0,92224.0,0.01454085]
[1740462255558,0.00012934,92230.0,92226.0,0.01454085]
[1740462255773,0.00012934,92230.0,92228.0,0.01454085]
[1740462255925,0.00012934,92230.0,92229.0,0.15292809]
[1740462256731,0.00112934,92230.0,92229.0,0.15292809]
[1740462257310,0.00012934,92230.0,92229.0,0.15292809]
[1740462257468,0.00112934,92230.0,92229.0,0.15592809]
[1740462259029,0.00112934,92230.0,92229.0,0.87500093]
[1740462259235,0.00112934,92230.0,92229.0,0.87348352]
[1740462262218,0.00102934,92230.0,92229.0,0.87348352]
[1740462262812,0.00102934,92230.0,92229.0,0.88352352]
[1740462265791,0.00102934,92230.0,92229.0,0.72207284]
[1740462267724,0.00102934,92230.0,92229.0,0.72376824]
[1740462268600,0.00102934,92230.0,92229.0,0.73830909]
[1740462269104,0.00102934,92230.0,92229.0,0.74834909]
[1740462270213,0.00102934,92230.0,92229.0,0.73380824]
[1740462270427,0.00102934,92230.0,92229.0,0.72376824]
[1740462270882,0.00102934,92230.0,92229.0,0.3270954]
[1740462273282,0.00102934,92230.0,92229.0,0.50514579]
[1740462273558,0.00102934,92230.0,92229.0,0.35167625]
[1740462273728,0.00102934,92230.0,92229.0,0.3371354]
[1740462273906,0.00102934,92230.0,92229.0,0.3270954]
[1740462274498,2.934e-05,92230.0,92229.0,0.3240954]
[1740462274910,0.01703962,92230.0,92229.0,0.3240954]
[1740462275517,0.01703962,92230.0,92229.0,0.35750894]
[1740462275853,0.01703962,92230.0,92229.0,0.36150894]
[1740462276387,0.01703962,92230.0,92229.0,0.35750894]
[1740462276691,0.01703962,92230.0,92229.0,0.37204979]
[1740462277085,0.01703962,92230.0,92229.0,0.37604979]
[1740462277697,0.01703962,92230.0,92229.0,0.50244979]
[1740462278567,2.934e-05,92230.0,92229.0,0.50244979]
[1740462279089,2.934e-05,92230.0,92229.0,0.50644979]
[1740462279497,2.934e-05,92230.0,92229.0,0.50244979]
[1740462279700,0.00102934,92230.0,92229.0,0.50644979]
[1740462285283,0.01803847,92230.0,92229.0,0.50644979]
[1740462285485,0.00102934,92230.0,92229.0,0.50644979]
[1740462290987,0.00187814,92230.0,92229.0,0.50644979]
[1740462293754,0.00187814,92230.0,92229.0,0.39043625]
[1740462293755,0.01888732,92230.0,92229.0,0.39043625]
[1740462300273,0.01888732,92230.0,92229.0,0.47153625]
[1740462302710,0.01888732,92230.0,92229.0,0.4569954]
[1740462302964,0.01888732,92230.0,92229.0,0.3381354]
[1740462303675,0.01888732,92230.0,92229.0,0.3280954]
[1740462303944,0.01888732,92230.0,92229.0,0.3381354]
[1740462305379,0.01888732,92230.0,92229.0,0.3280954]
[1740462305613,0.01888732,92230.0,92229.0,0.0056954]
[1740462305850,0.00187814,92230.0,92229.0,0.0056954]
[1740462306504,0.00087814,92230.0,92229.0,0.0016954]
[1740462306835,0.00087814,92230.0,92229.0,0.0056954]
[1740462307042,0.00087814,92230.0,92229.0,0.00721313]
[1740462307667,0.00087814,92230.0,92229.0,0.00321313]
[1740462307963,0.00087814,92230.0,92229.0,0.00721313]
[1740462308539,0.00087814,92230.0,92229.0,0.06438444]
[1740462308739,0.01788903,92230.0,92229.0,0.06438444]
[1740462309145,0.01888903,92230.0,92229.0,0.07573625]
[1740462309345,0.01888903,92230.0,92229.0,0.0126954]
[1740462309918,0.01255915,92230.0,92229.0,0.0126954]
[1740462310067,0.00187814,92230.0,92229.0,0.0126954]
[1740462311601,0.01301976,92230.0,92229.0,0.0126954]
[1740462311805,0.01301976,92230.0,92229.0,0.02723625]
[1740462312763,0.01301976,92230.0,92229.0,0.10633625]
[1740462313016,0.01301976,92230.0,92229.0,0.11712165]
[1740462313418,0.01301976,92230.0,92229.0,0.10633625]
[1740462314262,0.03003098,92230.0,92229.0,0.10633625]
[1740462315519,0.03003098,92230.0,92229.0,0.42873625]
[1740462315939,0.03003098,92230.0,92229.0,0.4141954]
[1740462316147,0.03003098,92230.0,92229.0,0.3350954]
[1740462317387,0.03003098,92230.0,92229.0,0.32465386]
[1740462319886,0.03003098,92230.0,92229.0,0.29427112]
[1740462320106,0.03003098,92230.0,92229.0,0.00306]
[1740462320310,0.03003098,92230.0,92216.0,0.35681529]
[1740462320463,0.03003098,92230.0,92216.0,0.35305291]
[1740462320674,0.01301976,92230.0,92212.0,0.00375298]
[1740462320868,0.01301976,92230.0,92213.0,0.00151803]
[1740462321055,0.00823074,92217.0,92213.0,0.00151803]
[1740462321253,0.00823074,92217.0,92214.0,0.0781]
[1740462321456,0.00823074,92217.0,92215.0,0.0015179]
[1740462322325,0.00923074,92217.0,92215.0,0.0015179]
[1740462322545,0.00823074,92217.0,92215.0,0.0015179]
[1740462323007,0.00823074,92217.0,92214.0,0.0781]
[1740462323679,0.00923074,92217.0,92214.0,0.0781]
[1740462323809,0.01023074,92217.0,92214.0,0.0781]
[1740462324016,0.00923074,92217.0,92215.0,0.00151792]
[1740462324436,0.01023074,92217.0,92215.0,0.00151792]
[1740462325219,0.00823074,92217.0,92215.0,0.00151792]
[1740462325411,0.02524402,92217.0,92215.0,0.00321552]
[1740462325603,0.02624402,92217.0,92216.0,0.06444085]
[1740462326014,0.01801328,92217.0,92216.0,0.06444085]
[1740462326256,0.01801328,92217.0,92216.0,0.14394085]
[1740462326487,0.01901328,92217.0,92216.0,0.14394085]
[1740462326890,0.01701328,92217.0,92216.0,0.16771361]
[1740462327304,0.01901328,92217.0,92216.0,0.14394085]
[1740462327693,0.01801328,92217.0,92216.0,0.14394085]
[1740462328061,0.01901328,92217.0,92216.0,0.14394085]
[1740462328468,0.01801328,92217.0,92216.0,0.14394085]
[1740462328873,0.01901328,92217.0,92216.0,0.14394085]
[1740462329304,0.001,92217.0,92216.0,0.14394085]
[1740462329763,0.002,92217.0,92216.0,0.15094085]
[1740462330290,0.002,92217.0,92216.0,0.47334085]
[1740462331489,0.002,92217.0,92216.0,0.48334085]
[1740462332024,0.13587221,92272.0,92216.0,0.48334085]
[1740462332222,0.00823983,92231.0,92218.0,0.01454085]
[1740462332426,0.00823983,92231.0,92220.0,0.01454085]
[1740462333464,0.00823983,92231.0,92220.0,0.01467019]
[1740462333857,0.00823983,92231.0,92222.0,0.01454085]
[1740462334057,0.00823983,92231.0,92221.0,0.00151772]
[1740462334058,0.01701091,92229.0,92220.0,0.02867019]
[1740462334242,0.01701091,92229.0,92221.0,0.01454085]
[1740462334642,0.01701091,92229.0,92223.0,0.01454085]
[1740462334846,0.01701091,92229.0,92225.0,0.01454085]
[1740462335048,0.01701091,92229.0,92228.0,0.01454085]
[1740462335258,0.01701091,92229.0,92228.0,0.06235859]
[1740462335496,0.01801091,92229.0,92228.0,0.06235859]
[1740462335898,0.01801091,92229.0,92228.0,0.08220418]
[1740462336107,0.01801091,92229.0,92228.0,0.48130418]
[1740462336278,0.01701091,92229.0,92228.0,0.45994085]
[1740462337782,0.01301091,92229.0,92228.0,0.45994085]
[1740462337924,0.001,92229.0,92228.0,0.45994085]
[1740462338134,0.002,92229.0,92228.0,0.46394085]
[1740462338467,0.01173,92272.0,92228.0,0.33694085]
[1740462338698,0.01173,92272.0,92233.0,0.1272]
[1740462338834,0.01173,92272.0,92236.0,0.01454085]
[1740462339035,0.01173,92272.0,92238.0,0.0801]
[1740462339239,0.01173,92272.0,92229.0,0.70479672]
[1740462339240,0.01173,92272.0,92241.0,0.0801]
[1740462339439,0.01173,92272.0,92242.0,0.0150581]
[1740462339643,0.01173,92272.0,92243.0,0.0801]
[1740462339876,0.01873,92272.0,92244.0,0.00967894]
[1740462340304,0.01173,92272.0,92244.0,0.00967894]
[1740462340625,0.01873,92272.0,92244.0,0.00967894]
[1740462341520,0.0170066,92267.0,92245.0,0.01454085]
[1740462341754,0.0170066,92267.0,92249.0,0.01454085]
[1740462341963,0.0170066,92267.0,92251.0,0.09344085]
[1740462342160,0.0170066,92267.0,92253.0,0.01454085]
[1740462342382,0.01173,92272.0,92255.0,0.01454085]
[1740462342647,0.01173,92272.0,92257.0,0.01454085]
[1740462342801,0.01173,92272.0,92258.0,0.00151717]
[1740462343023,0.0161613,92272.0,92258.0,0.00151717]
[1740462343405,0.0161613,92272.0,92258.0,0.01101297]
[1740462343672,0.0121613,92272.0,92258.0,0.00151717]
[1740462344420,0.01700574,92269.0,92258.0,0.00151717]
[1740462345931,0.01700574,92269.0,92258.0,0.00251717]
[1740462346326,0.01700574,92269.0,92259.0,0.01454085]
[1740462346529,0.01700574,92269.0,92263.0,0.01454085]
[1740462346530,0.02100574,92269.0,92263.0,0.01454085]
[1740462346754,0.02100574,92269.0,92262.0,0.0472]
[1740462346755,0.02100574,92269.0,92264.0,0.017317]
[1740462347300,0.01700574,92269.0,92264.0,0.017317]
[1740462347508,0.02100574,92269.0,92264.0,0.017317]
[1740462348126,0.02100574,92269.0,92264.0,0.00351712]
[1740462348684,0.01700574,92269.0,92264.0,0.00351712]
[1740462348891,0.01700574,92269.0,92264.0,0.002]
[1740462349206,0.02100574,92269.0,92264.0,0.002]
[1740462349406,0.004,92269.0,92264.0,0.002]
[1740462349809,0.00812661,92265.0,92264.0,0.002]
[1740462350867,0.00812661,92265.0,92263.0,0.01454085]
[1740462351018,0.00812661,92265.0,92263.0,0.33845798]
[1740462351179,0.00812661,92265.0,92264.0,0.002]
[1740462351805,0.00812661,92265.0,92263.0,0.33694085]
[1740462352010,0.01012661,92265.0,92263.0,0.33694085]
[1740462352232,0.01012661,92265.0,92263.0,0.33894085]
[1740462352431,0.01012661,92265.0,92264.0,0.00151712]
[1740462352834,0.02513188,92265.0,92264.0,0.00151712]
[1740462353038,0.02713188,92265.0,92263.0,0.33894085]
[1740462353550,0.02713188,92265.0,92263.0,0.33694085]
[1740462353551,0.02513188,92265.0,92263.0,0.33694085]
[1740462353756,0.02513188,92265.0,92264.0,0.003]
[1740462353986,0.02713188,92265.0,92264.0,0.00151714]
[1740462354266,0.02713188,92265.0,92263.0,0.33994085]
[1740462354469,0.001697,92305.0,92263.0,0.33994085]
[1740462354470,0.05445525,92316.0,92277.0,0.00970315]
[1740462354666,0.00012933,92306.0,92277.0,0.00970315]
[1740462355572,0.00816745,92278.0,92277.0,0.00970315]
[1740462355938,0.00816745,92278.0,92277.0,0.00770315]
[1740462356636,0.01700458,92297.0,92285.0,0.00770315]
[1740462356844,0.01713388,92297.0,92285.0,0.00370315]
[1740462358454,0.01713388,92297.0,92285.0,0.00470315]
[1740462358991,0.01713388,92297.0,92285.0,0.00370315]
[1740462359267,0.00796272,92286.0,92285.0,0.00470315]
[1740462360024,0.02496578,92286.0,92285.0,0.00470315]
[1740462360369,0.02496578,92286.0,92285.0,0.00370315]
[1740462361270,0.00796272,92286.0,92277.0,0.02]
[1740462361480,0.00796272,92286.0,92277.0,0.00618647]
[1740462361795,0.0328,92285.0,92273.0,0.26185467]
[1740462362401,0.0328,92285.0,92273.0,0.22296467]
[1740462362810,0.0328,92285.0,92273.0,0.06097822]
[1740462363013,0.07444187,92314.0,92277.0,0.001]
[1740462363014,0.15,92313.0,92277.0,0.001]
[1740462363218,0.15,92313.0,92277.0,0.0011293]
[1740462363537,0.0081487,92278.0,92277.0,0.0011293]
[1740462364524,0.02515248,92278.0,92277.0,0.02264639]
[1740462364655,0.02515248,92278.0,92277.0,0.0201293]
[1740462367375,0.02515248,92278.0,92277.0,0.0401293]
[1740462367820,0.02515248,92278.0,92277.0,0.04164634]
[1740462368027,0.02515248,92278.0,92277.0,0.0401293]
[1740462370140,0.02515248,92278.0,92277.0,0.05467015]
[1740462372684,0.02515248,92278.0,92277.0,0.05867015]
[1740462372934,0.02515248,92278.0,92277.0,0.05467015]
[1740462373165,0.02515248,92278.0,92277.0,0.05867015]
[1740462375547,0.02515248,92278.0,92277.0,0.08516195]
[1740462376421,0.02515248,92278.0,92277.0,0.08685795]
[1740462377670,0.02515248,92278.0,92277.0,0.16825795]
[1740462377879,0.0081487,92278.0,92277.0,0.21525795]
[1740462378081,0.0081487,92278.0,92277.0,0.21374099]
[1740462378646,0.0081487,92278.0,92277.0,0.18876615]
[1740462378873,0.0081487,92278.0,92277.0,0.19028304]
[1740462380204,0.0008487,92313.0,92296.0,0.02]
[1740462380404,0.0008487,92313.0,92302.0,0.02]
[1740462380572,0.0008487,92313.0,92305.0,0.02]
[1740462380779,0.00814061,92306.0,92305.0,0.04]
[1740462386078,0.0251387,92306.0,92305.0,0.03379463]
[1740462386275,0.0251387,92306.0,92305.0,0.01379463]
[1740462386632,0.0251387,92306.0,92305.0,0.03379463]
[1740462387187,0.0251387,92306.0,92305.0,0.11689463]
[1740462387507,0.0251387,92306.0,92305.0,0.12873575]
[1740462389294,0.00814061,92306.0,92305.0,0.12873575]
[1740462389496,0.00814061,92306.0,92305.0,0.11689463]
[1740462391391,0.00814061,92306.0,92305.0,0.13143548]
[1740462392006,0.00814061,92306.0,92305.0,0.13443548]
[1740462393589,0.00814061,92306.0,92298.0,0.0374257]
[1740462394012,0.00814061,92306.0,92299.0,0.0015166]
[1740462394823,0.00814061,92306.0,92298.0,0.0374257]
[1740462395000,0.00814061,92306.0,92299.0,0.0015166]
[1740462395360,0.00814061,92306.0,92305.0,0.010895]
[1740462395922,0.02513848,92306.0,92305.0,0.010895]
[1740462397837,0.02513848,92306.0,92305.0,0.012895]
[1740462399512,0.02513848,92306.0,92305.0,0.0145912]
[1740462399715,0.02598658,92306.0,92305.0,0.0145912]
[1740462400103,0.00898871,92306.0,92305.0,0.0145912]
[1740462400276,0.00898871,92306.0,92305.0,0.02913205]
[1740462400480,0.00898871,92306.0,92305.0,0.11213205]
[1740462401085,0.0008481,92306.0,92305.0,0.11213205]
[1740462401333,0.0008481,92306.0,92305.0,0.16183205]
[1740462402169,0.0008481,92306.0,92305.0,0.15983205]
[1740462402584,0.0008481,92306.0,92305.0,0.16383205]
[1740462403348,0.01784522,92306.0,92305.0,0.16383205]
[1740462405715,0.01784522,92306.0,92305.0,0.18036691]
[1740462406149,0.01784522,92306.0,92305.0,0.16383205]
[1740462406885,0.0008481,92306.0,92305.0,0.16383205]
[1740462407869,0.0008481,92306.0,92305.0,0.15983205]
[1740462408325,0.0008481,92306.0,92305.0,0.16383205]
[1740462410349,0.05427566,92363.0,92319.0,0.02]
[1740462410470,0.00012923,92343.0,92319.0,0.02]
[1740462411895,0.00012923,92343.0,92319.0,0.021]
[1740462412306,0.00012923,92343.0,92319.0,0.022]
[1740462412855,0.00012923,92343.0,92319.0,0.00549537]
[1740462413062,0.00012923,92343.0,92319.0,0.00649537]
[1740462414506,0.00813362,92320.0,92319.0,0.00649537]
[1740462415487,0.00813362,92320.0,92319.0,0.00449537]
[1740462416025,0.00813362,92320.0,92319.0,0.08209537]
[1740462416565,0.02513014,92320.0,92319.0,0.08209537]
[1740462417083,0.02513014,92320.0,92319.0,0.04193741]
[1740462417298,0.02513014,92320.0,92310.0,0.02]
[1740462418750,0.02513014,92320.0,92308.0,0.02]
[1740462418953,0.02513014,92320.0,92305.0,0.04494363]
[1740462419704,0.02513014,92320.0,92252.0,0.10681827]
[1740462419878,0.02513014,92320.0,92287.0,0.01]
[1740462420080,0.00813362,92320.0,92288.0,0.01454085]
[1740462420307,0.00813362,92320.0,92288.0,0.09594085]
[1740462420483,0.01699853,92312.0,92288.0,0.0814]
[1740462420890,0.00813362,92320.0,92288.0,0.0814]
[1740462421343,0.00813362,92320.0,92280.0,0.01]
[1740462421344,0.00831653,92293.0,92280.0,0.01]
[1740462421550,0.00831653,92293.0,92269.0,0.01]
[1740462421720,0.00831653,92293.0,92288.0,0.003]
[1740462421927,0.00831653,92293.0,92280.0,0.0001293]
[1740462422126,0.00831653,92293.0,92266.0,0.01]
[1740462422331,0.00844569,92293.0,92266.0,0.01]
[1740462422534,0.00844569,92293.0,92266.0,0.01151709]
[1740462422736,0.00844569,92293.0,92267.0,0.0466]
[1740462422918,0.00844569,92293.0,92288.0,0.004]
[1740462423616,0.00844569,92293.0,92287.0,0.0016964]
[1740462423817,0.00844569,92293.0,92288.0,0.0025264]
[1740462424024,0.0764,92292.0,92288.0,0.0025264]
[1740462424228,0.0764,92292.0,92248.0,0.01]
[1740462424422,0.0764,92292.0,92249.0,0.0765]
[1740462425017,0.0764,92292.0,92288.0,0.006]
[1740462425375,0.0764,92292.0,92266.0,0.002]
[1740462425784,0.0764,92292.0,92250.0,0.10287641]
[1740462426071,0.0834,92292.0,92250.0,0.10135912]
[1740462426633,0.0804,92292.0,92250.0,0.10135912]
[1740462426890,0.00805297,92289.0,92266.0,0.001]
[1740462427096,0.01700478,92282.0,92266.0,0.001]
[1740462428341,0.01700478,92282.0,92251.0,0.0015173]
[1740462428550,0.01800478,92282.0,92252.0,0.02279764]
[1740462428769,0.01800478,92282.0,92253.0,0.0015173]
[1740462428950,0.01800478,92282.0,92256.0,0.01454085]
[1740462429281,0.01800478,92282.0,92257.0,0.00151721]
[1740462429481,0.02200478,92282.0,92257.0,0.00151721]
[1740462429859,0.02100478,92282.0,92255.0,0.0779]
[1740462430011,0.0491,92281.0,92255.0,0.0779]
[1740462431612,0.0501,92281.0,92255.0,0.0779]
[1740462432361,0.0541,92281.0,92255.0,0.0779]
[1740462432753,0.00826037,92258.0,92255.0,0.0779]
[1740462433396,0.02526606,92258.0,92255.0,0.0779]
[1740462433955,0.02635,92258.0,92255.0,0.0839]
[1740462434579,0.0435492,92258.0,92242.0,0.01623825]
[1740462434806,0.0435492,92258.0,92205.0,0.0016964]
[1740462435007,0.0435492,92258.0,92255.0,0.004]
[1740462435163,0.2303,92257.0,92255.0,0.004]
[1740462435363,0.2303,92257.0,92228.0,0.01]
[1740462435862,0.2303,92257.0,92242.0,0.004]
[1740462436152,0.2303,92257.0,92255.0,0.007]
[1740462436320,0.15,92257.0,92255.0,0.007]
[1740462436498,0.15,92257.0,92235.0,0.01454085]
[1740462436698,0.15,92257.0,92237.0,0.01454085]
[1740462436699,0.151,92257.0,92237.0,0.01454085]
[1740462436924,0.151,92257.0,92239.0,0.01454085]
[1740462437130,0.15,92257.0,92242.0,0.01454085]
[1740462437335,0.151,92257.0,92255.0,0.007]
[1740462437537,0.15,92257.0,92242.0,0.01454085]
[1740462437742,0.15,92257.0,92239.0,0.0775]
[1740462438142,0.15,92257.0,92255.0,0.005]
[1740462438724,0.16700751,92257.0,92239.0,0.0775]
[1740462439079,0.16800751,92257.0,92239.0,0.0825]
[1740462439259,0.16700751,92257.0,92239.0,0.005]
[1740462439491,0.16800751,92257.0,92255.0,0.006]
[1740462439663,0.16800751,92257.0,92239.0,0.005]
[1740462439870,0.151,92257.0,92239.0,0.005]
[1740462440072,0.152,92257.0,92239.0,0.011]
[1740462440372,0.152,92257.0,92239.0,0.005]
[1740462440373,0.15,92257.0,92239.0,0.005]